bitfinex/quotes_ETHUSD_20251220
["timestamp","ask_amount","ask_price","bid_price","bid_amount"]
[1766201685788,0.439,2995.6,2995.2,1.36152872]
[1766201686190,0.8124,2995.6,2995.2,1.36152872]
[1766201686688,0.8144,2995.6,2995.2,1.36152872]
[1766201687983,0.8144,2995.6,2995.2,1.00322872]
[1766201688186,0.3734,2995.5,2995.2,1.00322872]
[1766201688481,1.3478,2995.5,2995.2,1.00322872]
[1766201688686,1.2983,2995.4,2995.0,0.001]
[1766201688884,1.2983,2995.4,2995.0,1.00422872]
[1766201689205,1.2983,2995.4,2995.0,0.001]
[1766201689590,0.3734,2995.4,2995.0,0.001]
[1766201689765,1.7417,2995.6,2995.0,0.3593]
[1766201689966,1.7417,2995.6,2995.0,1.7288]
[1766201691496,1.3683,2995.6,2995.0,1.7288]
[1766201691794,1.3055,2995.5,2995.0,1.7288]
[1766201694692,1.3075,2995.5,2995.0,1.7288]
[1766201695098,0.002,2995.5,2995.1,1.7278]
[1766201696297,0.002,2995.5,2995.2,1.3695]
[1766201696468,0.002,2995.5,2995.2,1.7278]
[1766201697491,0.002,2995.5,2995.1,0.3583]
[1766201697700,0.002,2995.5,2995.2,1.3695]
[1766201699300,0.002,2995.5,2995.2,1.7278]
[1766201699799,0.002,2995.5,2995.2,0.3583]
[1766201700175,0.002,2995.5,2995.3,1.3695]
[1766201700380,0.002,2995.5,2995.3,1.7278]
[1766201703605,0.002,2995.9,2995.3,1.7278]
[1766201703803,0.002,2995.9,2995.4,0.3583]
[1766201703981,0.002,2995.9,2995.5,1.3695]
[1766201704188,0.002,2995.9,2995.6,1.7278]
[1766201704390,0.002,2995.9,2995.6,1.7347]
[1766201705099,0.002,2995.9,2995.5,0.439]
[1766201705605,0.3816,2995.9,2995.5,0.439]
[1766201707912,0.3816,2995.9,2995.2,1.7321]
[1766201707913,1.349,2995.8,2995.2,1.7321]
[1766201708124,0.3796,2995.7,2995.3,0.439]
[1766201708419,1.349,2995.7,2995.3,0.439]
[1766201708615,0.3816,2995.9,2995.3,2.1711]
[1766201708919,0.3796,2995.8,2995.3,2.1711]
[1766201709137,0.3796,2995.8,2995.3,3.17423144]
[1766201710020,0.3796,2995.8,2995.3,2.73523144]
[1766201710180,0.3796,2995.6,2995.3,0.439]
[1766201710393,0.3796,2995.5,2995.3,0.439]
[1766201712211,0.9711,2995.6,2995.3,0.439]
[1766201712412,1.3507,2995.6,2995.3,0.439]
[1766201713844,0.3796,2995.5,2995.3,0.439]
[1766201714505,0.3796,2995.5,2995.0,0.001]
[1766201715214,0.3796,2995.5,2995.0,1.3679]
[1766201716437,0.9711,2995.6,2995.1,0.3652]
[1766201716634,1.3507,2995.6,2995.1,0.3652]
[1766201717133,1.3507,2995.6,2995.3,0.001]
[1766201720048,0.3732,2995.5,2995.0,0.001]
[1766201720230,1.3522,2995.4,2995.0,0.001]
[1766201720426,1.3522,2995.4,2994.9,0.001]
[1766201720427,0.3732,2995.1,2994.9,0.001]
[1766201720946,0.3732,2995.1,2994.8,0.001]
[1766201721152,0.3732,2995.1,2994.9,0.13377904]
[1766201721325,1.353,2995.1,2994.9,0.13377904]
[1766201721734,0.9798,2995.1,2994.8,0.001]
[1766201721936,0.3732,2994.9,2994.7,0.001]
[1766201722351,0.8458,2995.0,2994.8,0.44]
[1766201722649,0.3732,2995.1,2994.8,0.44]
[1766201725248,0.3732,2995.1,2994.9,0.001]
[1766201725451,0.8948,2995.0,2994.7,0.001]
[1766201725658,0.0474,2994.9,2994.6,0.001]
[1766201725861,0.0474,2994.9,2994.5,0.001]
[1766201725862,0.8397,2994.9,2994.5,0.001]
[1766201726759,0.439,2995.1,2994.5,1.4252]
[1766201726951,0.439,2995.1,2994.8,1.7736]
[1766201729060,0.439,2995.2,2994.8,1.7736]
[1766201729957,3.33813471,2995.7,2994.8,1.4242]
[1766201730164,1.286,2995.6,2995.0,1.7736]
[1766201730760,0.8479,2995.5,2995.0,1.7736]
[1766201732234,0.46252152,2995.4,2995.0,1.7736]
[1766201732856,0.002,2995.2,2995.0,1.7736]
[1766201737352,0.002,2995.2,2995.0,0.3494]
[1766201738687,0.002,2995.2,2994.9,2.2155]
[1766201738837,0.002,2995.2,2994.9,2.5762]
[1766201740794,0.439,2995.5,2995.0,1.3676]
[1766201740993,0.439,2995.5,2995.1,0.3607]
[1766201741294,1.3081,2995.5,2995.0,2.37091595]
[1766201742178,0.439,2995.5,2995.0,1.00331595]
[1766201742376,0.8707,2995.3,2995.0,1.00331595]
[1766201742577,0.8707,2995.3,2994.8,0.001]
[1766201742578,0.8076,2995.3,2994.8,0.001]
[1766201744881,1.10432832,2995.5,2994.9,0.3607]
[1766201745174,0.44861783,2995.4,2994.9,1.7283]
[1766201745752,0.65071783,2995.4,2994.9,1.7283]
[1766201745952,0.65071783,2995.4,2994.9,0.3607]
[1766201746176,0.65071783,2995.4,2994.8,0.001]
[1766201746579,0.44861783,2995.4,2994.8,0.001]
[1766201746781,0.62609791,2995.3,2994.8,0.001]
[1766201747675,0.62809791,2995.3,2994.8,0.001]
[1766201749296,0.42459791,2995.3,2994.8,0.001]
[1766201749498,0.2076,2995.2,2994.8,0.001]
[1766201753408,0.42459791,2995.3,2994.8,0.001]
[1766201753903,0.63749791,2995.3,2994.8,0.001]
[1766201754468,0.2142,2995.2,2994.8,0.001]
[1766201754869,0.2132,2995.0,2994.5,0.001]
[1766201756600,0.439,2995.1,2994.5,0.001]
[1766201756817,0.441,2995.2,2994.6,1.3676]
[1766201756965,0.002,2995.2,2994.6,1.3676]
[1766201757170,0.002,2995.2,2994.8,0.3607]
[1766201757803,0.002,2995.2,2994.8,1.7283]
[1766201759372,0.002,2995.2,2994.6,1.3676]
[1766201759572,0.002,2995.2,2994.9,0.3607]
[1766201759892,0.002,2995.2,2995.0,1.7283]
[1766201769711,0.441,2995.3,2995.1,0.3843]
[1766201770008,0.441,2995.3,2995.1,1.7518]
[1766201770397,0.439,2995.6,2995.0,0.3843]
[1766201770717,0.81670065,2995.6,2995.1,1.7518]
[1766201770920,0.37770065,2995.6,2995.1,1.7518]
[1766201771095,3.57480654,2995.8,2995.1,1.3675]
[1766201771096,0.439,2995.7,2995.1,1.3675]
[1766201771290,0.439,2995.7,2995.2,0.3843]
[1766201771605,0.439,2995.7,2995.2,1.7518]
[1766201771983,0.002,2995.6,2995.2,1.7518]
[1766201773121,0.002,2995.6,2994.8,11.48973688]
[1766201773323,3.33993957,2995.9,2995.0,0.3843]
[1766201773324,0.002,2995.9,2995.0,0.3843]
[1766201773623,0.441,2995.9,2995.3,0.3843]
[1766201773796,0.441,2995.9,2995.4,1.7518]
[1766201774738,0.002,2995.9,2995.4,1.7518]
[1766201774887,0.439,2995.8,2995.4,1.7518]
[1766201777294,3.77704169,2995.8,2995.4,1.7518]
[1766201777622,3.77704169,2995.8,2995.2,0.3843]
[1766201777788,4.02284169,2995.8,2995.2,1.7518]
[1766201778913,4.02484169,2995.8,2995.2,1.7518]
[1766201779316,0.6868,2995.8,2995.2,1.7518]
[1766201779529,0.6868,2995.8,2995.3,0.3843]
[1766201779820,0.6868,2995.8,2995.3,1.7518]
[1766201781626,0.2478,2995.8,2995.3,1.7518]
[1766201781925,0.6868,2995.8,2995.3,1.7518]
[1766201785923,0.441,2995.8,2995.3,1.3675]
[1766201786114,0.441,2995.8,2995.4,1.8304]
[1766201786313,0.002,2995.8,2995.4,1.8304]
[1766201786515,0.002,2995.8,2995.0,0.439]
[1766201786722,0.002,2995.8,2995.1,1.4208]
[1766201786912,0.002,2995.8,2995.3,1.4208]
[1766201787106,0.002,2995.8,2995.4,1.8304]
[1766201791435,0.002,2996.4,2995.7,1.8304]
[1766201791736,0.002,2996.4,2996.1,0.4096]
[1766201791901,0.002,2996.4,2996.2,1.8304]
[1766201797718,0.002,2996.4,2996.2,0.4096]
[1766201798043,0.002,2996.4,2996.0,1.7673]
[1766201799048,0.002,2996.4,2996.0,2.36782304]
[1766201801118,0.002,2996.4,2996.0,1.97252304]
[1766201801330,0.002,2996.4,2996.1,1.7673]
[1766201801928,0.002,2996.4,2995.9,7.14366749]
[1766201802147,0.002,2996.7,2996.4,1.7673]
[1766201802450,0.002,2996.7,2996.5,1.7673]
[1766201804636,0.002,2997.0,2996.6,1.372]
[1766201804825,0.002,2997.0,2996.7,1.7673]
[1766201805023,0.002,2997.0,2996.5,8.07866424]
[1766201805353,0.002,2997.0,2996.8,1.7673]
[1766201806425,0.002,2997.0,2996.9,0.3953]
[1766201810961,0.002,2997.0,2996.8,1.372]
[1766201811561,0.002,2997.0,2996.6,0.439]
[1766201813331,0.002,2997.0,2996.6,0.8343]
[1766201814564,0.002,2997.0,2996.6,0.439]
[1766201814862,0.2842,2997.0,2996.6,0.439]
[1766201815859,0.002,2997.0,2996.6,0.439]
[1766201816159,0.2828,2996.9,2996.6,0.439]
[1766201817166,0.002,2997.0,2996.6,0.439]
[1766201817553,0.286,2997.0,2996.6,0.439]
[1766201818166,0.002,2997.0,2996.6,0.439]
[1766201818366,0.002,2997.0,2996.6,2.2063]
[1766201821269,0.002,2997.0,2996.6,1.811]
[1766201821458,0.002,2997.0,2996.8,1.7673]
[1766201822355,0.002,2997.0,2996.8,0.3953]
[1766201828380,0.002,2997.0,2996.9,0.424]
[1766201828751,0.002,2997.0,2996.8,1.3366]
[1766201828960,0.002,2997.0,2996.7,0.424]
[1766201829573,0.002,2997.0,2996.6,1.7756]
[1766201830886,0.2937,2997.0,2996.6,0.439]
[1766201831679,0.2922,2996.9,2996.6,0.439]
[1766201832973,0.2922,2996.9,2996.5,0.001]
[1766201833186,0.2922,2996.9,2996.5,0.442]
[1766201835483,0.002,2997.0,2996.5,0.442]
[1766201835984,0.002,2997.0,2996.7,1.7606]
[1766201843495,0.002,2997.0,2996.5,0.001]
[1766201843701,0.002,2997.0,2996.8,1.3851]
[1766201843918,0.002,2997.0,2996.8,1.7757]
[1766201844589,0.002,2997.1,2996.9,0.3906]
[1766201844784,0.002,2997.1,2996.9,1.7757]
[1766201845499,0.002,2997.1,2996.5,1.00372239]
[1766201845701,0.002,2997.1,2996.6,1.7757]
[1766201845876,0.002,2997.1,2996.6,1.66404224]
[1766201846078,0.002,2997.0,2996.7,0.3906]
[1766201847215,0.002,2997.0,2996.7,1.7757]
[1766201852905,0.002,2997.0,2996.6,0.27894224]
[1766201853209,0.002,2997.0,2996.7,1.7757]
[1766201853411,0.002,2997.0,2996.7,0.24946422]
[1766201853578,0.002,2997.0,2996.8,1.7757]
[1766201855707,0.002,2997.0,2996.6,2.0711]
[1766201856014,0.002,2997.0,2996.7,0.4221]
[1766201856202,0.002,2997.0,2996.7,1.7691]
[1766201862711,0.002,2997.0,2996.6,0.302]
[1766201863088,0.002,2997.0,2996.6,0.7241]
[1766201864524,0.002,2997.0,2996.6,1.7701]
[1766201864726,0.002,2997.0,2996.6,1.94721]
[1766201865821,0.002,2997.0,2996.6,1.52511]
[1766201866022,0.002,2997.0,2996.7,0.4221]
[1766201866390,0.002,2997.0,2996.7,1.7691]
[1766201871721,0.002,2997.0,2996.6,0.17811]
[1766201872017,0.002,2997.0,2996.7,1.347]
[1766201872207,0.002,2997.0,2996.8,1.7691]
[1766201875119,0.002,2997.0,2996.6,0.001]
[1766201875318,0.3135,2997.0,2996.6,0.001]
[1766201875626,0.3135,2997.0,2996.4,0.439]
[1766201875799,0.3108,2996.9,2996.1,1.7691]
[1766201876000,0.3108,2996.9,2996.5,0.001]
[1766201880426,0.3109,2996.7,2996.1,1.00282629]
[1766201881131,0.3109,2996.7,2996.1,1.42492629]
[1766201881312,0.002,2997.0,2996.3,0.4221]
[1766201881633,0.3115,2996.9,2996.2,0.4221]
[1766201881924,0.7505,2996.9,2996.3,1.7691]
[1766201882129,0.7505,2996.9,2996.2,0.13371017]
[1766201882293,0.7505,2996.9,2996.4,0.4221]
[1766201882624,1.15960691,2996.9,2996.5,0.001]
[1766201883619,0.72060691,2996.9,2996.5,0.001]
[1766201883791,0.40910691,2996.9,2996.5,0.001]
[1766201884723,0.40910691,2996.9,2996.5,0.4022]
[1766201884893,0.002,2997.0,2996.7,1.8019]
[1766201886097,0.002,2997.0,2996.6,1.4007]
[1766201886425,0.002,2997.0,2996.8,1.8019]
[1766201887736,0.002,2997.0,2996.5,1.8029]
[1766201888023,0.002,2997.0,2996.5,1.4017]
[1766201888229,0.002,2997.0,2996.6,0.4012]
[1766201888736,0.002,2997.0,2996.6,1.8019]
[1766201893333,0.002,2997.0,2996.5,0.001]
[1766201893707,0.002,2997.0,2996.7,0.4012]
[1766201893912,0.002,2997.0,2996.7,1.8019]
[1766201898337,0.002,2997.0,2996.5,1.8029]
[1766201898634,0.002,2997.0,2996.5,0.001]
[1766201898934,0.002,2997.0,2996.5,1.8029]
[1766201899135,0.002,2997.0,2996.5,0.001]
[1766201899631,0.002,2997.0,2996.6,1.8019]
[1766201899832,0.002,2997.0,2996.7,0.4012]
[1766201900016,0.002,2997.0,2996.8,1.8079]
[1766201904332,0.002,2997.0,2996.8,1.79685902]
[1766201907046,0.002,2997.0,2996.9,0.4072]
[1766201907539,0.002,2997.0,2996.9,1.8008]
[1766201909952,0.002,2997.1,2996.9,1.8008]
[1766201911627,0.002,2997.1,2997.0,1.8008]
[1766201911950,0.439,2997.3,2997.0,1.8008]
[1766201913754,0.439,2997.3,2997.0,1.3936]
[1766201913956,0.439,2997.3,2997.1,1.8008]
[1766201915254,0.439,2997.3,2997.1,0.4072]
[1766201915426,0.441,2997.3,2997.1,0.4072]
[1766201919129,0.441,2997.3,2996.9,1.8725]
[1766201920764,0.441,2997.3,2996.9,1.4568]
[1766201920951,0.441,2997.3,2997.0,1.8725]
[1766201926869,0.441,2997.3,2997.0,1.4568]
[1766201927184,0.441,2997.3,2997.1,0.4157]
[1766201927971,0.441,2997.3,2997.1,1.8725]
[1766201928140,0.002,2997.3,2997.1,1.8725]
[1766201929076,0.002,2997.3,2996.9,1.8735]
[1766201930678,0.002,2997.3,2997.0,0.001]
[1766201933893,0.002,2997.3,2997.0,1.8735]
[1766201936180,0.002,2997.3,2997.0,1.4578]
[1766201936366,0.002,2997.3,2997.0,1.8735]
[1766201941090,0.002,2997.3,2997.1,0.4157]
[1766201941299,0.439,2997.5,2997.1,1.8725]
[1766201941467,0.002,2997.6,2997.3,1.8725]
[1766201941863,0.002,2997.6,2997.1,0.18745]
[1766201942065,0.002,2997.6,2997.4,1.4568]
[1766201942264,0.002,2997.6,2997.4,1.8725]
[1766201943592,0.002,2997.7,2997.1,0.62845]
[1766201943787,0.002,2997.7,2997.4,0.4157]
[1766201943995,0.002,2997.7,2997.5,0.4157]
[1766201944194,0.439,2998.1,2997.6,0.4047]
[1766201944427,0.3392,2998.0,2997.5,1.4568]
[1766201944696,0.3392,2998.0,2997.5,1.00245769]
[1766201946274,0.002,2997.6,2997.5,1.00245769]
[1766201946484,0.002,2997.6,2997.5,1.28360346]
[1766201948166,0.439,2998.1,2997.6,1.809]
[1766201948988,0.7796,2998.1,2997.6,1.809]
[1766201951223,0.439,2998.1,2997.5,8.41964139]
[1766201951422,0.439,2998.1,2997.7,1.809]
[1766201951822,0.439,2998.1,2997.7,1.4043]
[1766201951991,0.439,2998.1,2997.8,1.809]
[1766201952514,0.439,2998.1,2997.8,0.4047]
[1766201952723,0.439,2998.1,2997.9,1.4043]
[1766201952926,0.439,2998.1,2997.9,1.809]
[1766201953088,0.441,2998.1,2997.9,1.809]
[1766201953501,0.002,2998.1,2997.9,1.809]
[1766201954212,0.3408,2998.1,2997.6,3.65338833]
[1766201954525,0.3408,2998.1,2997.6,2.81142419]
[1766201955493,0.3408,2998.1,2997.6,1.00242419]
[1766201956596,0.7798,2998.1,2997.6,1.00242419]
[1766201957825,0.7798,2998.1,2997.5,2.09014577]
[1766201958026,0.7798,2998.1,2997.5,3.09256996]
[1766201958327,0.7798,2998.1,2997.6,0.309257]
[1766201958525,0.441,2998.1,2997.8,0.4047]
[1766201958731,0.002,2998.1,2997.7,1.4043]
[1766201959027,0.002,2998.1,2997.9,1.809]
[1766201961526,0.3356,2998.0,2997.7,0.441]
[1766201962927,0.38088686,2998.1,2997.7,0.441]
[1766201963135,0.3353,2998.0,2997.5,0.001]
[1766201967719,0.002,2998.1,2997.5,0.001]
[1766201967925,0.002,2998.1,2997.6,0.4042]
[1766201968432,0.002,2998.0,2997.6,1.7782]
[1766201972936,0.002,2998.0,2997.5,0.001]
[1766201973137,0.3342,2998.0,2997.5,1.7792]
[1766201976142,0.3311,2997.9,2997.1,1.3901]
[1766201976513,1.00257829,2997.9,2997.1,1.8096]
[1766201976715,1.00257829,2997.9,2997.1,1.3901]
[1766201977013,1.00257829,2997.9,2997.2,0.4195]
[1766201977215,0.47514064,2997.8,2997.2,1.8096]
[1766201977917,1.00257829,2997.7,2997.2,1.8096]
[1766201978245,1.48516515,2997.7,2997.0,0.001]
[1766201978432,7.13389358,2997.5,2996.9,0.001]
[1766201978747,7.17748044,2997.5,2996.6,1.8096]
[1766201978910,1.00269893,2997.4,2996.6,1.8096]
[1766201979114,0.439,2997.3,2996.6,1.8096]
[1766201979341,3.77544452,2997.3,2996.5,0.001]
[1766201979543,7.61170793,2997.2,2996.3,0.001]
[1766201979743,0.04358686,2997.1,2996.3,0.001]
[1766201980625,0.04358686,2996.9,2995.9,1.9443276]
[1766201980825,0.439,2996.8,2995.9,1.9443276]
[1766201981341,3.77595622,2996.8,2996.0,1.8096]
[1766201981546,4.49158208,2996.8,2996.0,1.8096]
[1766201981844,4.49158208,2996.8,2995.9,0.1347276]
[1766201981845,7.11291244,2996.8,2995.9,0.1347276]
[1766201982047,0.04358686,2996.5,2995.9,2.76e-05]
[1766201982341,0.439,2996.4,2995.7,1.00401741]
[1766201982523,0.439,2996.4,2995.5,0.4205]
[1766201982720,1.20064804,2996.4,2995.5,0.001]
[1766201982927,7.17748044,2996.3,2995.5,0.001]
[1766201983637,3.33756091,2996.2,2995.5,0.001]
[1766201984042,3.33756091,2996.2,2995.9,0.001]
[1766201984410,3.33756091,2996.2,2995.3,0.001]
[1766201985228,0.04358686,2996.1,2995.3,0.001]
[1766201985549,0.439,2996.0,2995.3,0.28247012]
[1766201985718,3.77679252,2996.0,2995.3,0.001]
[1766201986714,0.439,2996.0,2995.3,0.001]
[1766201986914,3.7767875,2996.0,2995.3,1.8106]
[1766201987342,0.439,2996.0,2995.4,1.8096]
[1766201987543,0.439,2996.0,2995.5,0.18106]
[1766201987846,0.439,2996.0,2995.5,1.99066]
[1766201989354,0.439,2996.0,2995.5,1.8096]
[1766201990240,3.33759529,2996.2,2995.3,0.001]
[1766201990455,0.439,2996.1,2995.3,0.001]
[1766201990656,0.439,2996.1,2995.5,0.4195]
[1766201990865,0.439,2996.1,2995.5,1.8096]
[1766201992362,0.439,2996.1,2995.5,1.8106]
[1766201993135,3.77667425,2996.1,2995.5,1.8106]
[1766201993861,0.04358686,2997.5,2996.0,7.14244249]
[1766201994037,0.04358686,2996.9,2996.2,1.8096]
[1766201994355,0.4388,2996.7,2996.2,1.8096]
[1766201994529,0.4388,2996.7,2996.3,0.31580199]
[1766201994728,0.191975,2996.7,2996.3,0.31580199]
[1766201994940,0.191975,2996.7,2996.3,0.75460199]
[1766201995163,0.191975,2996.7,2996.3,0.4388]
[1766201995359,0.191975,2996.7,2996.2,1.8096]
[1766201995557,0.191975,2996.7,2996.3,0.3339]
[1766201997765,0.191975,2996.7,2996.2,1.8096]
[1766201998166,0.191975,2996.7,2996.2,2.81250675]
[1766201998863,0.191975,2996.7,2996.2,3.13765743]
[1766201999369,0.191975,2996.7,2996.3,0.001]
[1766201999666,0.3339,2996.8,2996.3,0.001]
[1766201999848,0.3339,2996.8,2996.3,1.8106]
[1766202001146,0.2938,2996.9,2996.3,1.8106]
[1766202001361,0.2938,2996.9,2996.4,0.21357507]
[1766202001767,0.04358686,2997.0,2996.4,0.21357507]
[1766202001969,0.439,2997.2,2996.6,1.8096]
[1766202002280,0.439,2997.2,2996.5,0.439]
[1766202002281,0.6628,2997.1,2996.5,0.439]
[1766202002485,3.33646649,2997.2,2996.5,0.439]
[1766202002787,0.6664,2997.1,2996.5,0.439]
[1766202002962,0.2993,2997.0,2996.5,0.439]
[1766202003156,0.2993,2997.0,2996.5,0.70786]
[1766202003358,0.2993,2997.0,2996.5,2.51746]
[1766202004790,0.302,2997.2,2996.6,1.9398]
[1766202004948,0.302,2997.2,2996.5,1.71063601]
[1766202005156,0.42268686,2997.3,2996.7,0.4247]
[1766202005343,3.63962094,2997.4,2996.5,0.70786]
[1766202005547,3.63962094,2997.4,2996.8,1.5151]
[1766202005764,3.63962094,2997.4,2996.8,1.9398]
[1766202006057,4.02222094,2997.4,2996.8,1.9398]
[1766202006662,0.002,2997.0,2996.8,1.9398]
[1766202008708,0.002,2997.0,2996.8,2.94247547]
[1766202008988,0.002,2997.0,2996.8,1.00267547]
[1766202009186,0.002,2997.0,2996.6,1.5151]
[1766202009494,0.3982,2997.0,2996.5,0.439]
[1766202011497,0.7091,2997.0,2996.5,0.439]
[1766202012896,0.3133,2996.8,2996.5,0.439]
[1766202013101,0.7192,2996.8,2996.5,0.439]
[1766202014009,0.7236,2996.8,2996.3,0.001]
[1766202014702,0.4112,2996.5,2996.2,0.439]
[1766202014997,0.7257,2996.5,2996.2,0.439]
[1766202016968,0.04358686,2996.8,2996.2,0.439]
[1766202017190,0.04358686,2996.8,2996.2,2.3788]
[1766202017992,0.36268686,2996.8,2996.2,2.3788]
[1766202018409,0.4112,2996.9,2996.3,1.9398]
[1766202018718,0.441,2997.0,2996.5,1.9398]
[1766202020435,0.002,2997.0,2996.7,1.9228]
[1766202021012,1.76512909,2997.5,2996.9,1.9228]
[1766202021312,4.5327185,2997.5,2996.9,1.9228]
[1766202022710,0.002,2997.0,2996.9,1.9228]
[1766202022916,0.002,2997.0,2996.9,2.11508]
[1766202024822,0.002,2997.0,2996.9,0.19228]
[1766202025003,0.002,2997.0,2996.7,1.4844]
[1766202025319,0.002,2997.0,2996.8,1.9228]
[1766202026198,3.37982138,2997.4,2996.8,1.9228]
[1766202026396,0.04358686,2997.4,2996.6,1.44171568]
[1766202027096,0.04358686,2997.4,2996.8,0.4384]
[1766202027316,0.04358686,2997.4,2997.0,1.9228]
[1766202028129,3.37983537,2997.4,2997.0,1.9228]
[1766202028928,0.04358686,2997.4,2997.0,1.9228]
[1766202029816,0.83608686,2997.6,2997.0,2.11508]
[1766202029995,0.37518686,2997.6,2997.0,2.11508]
[1766202031506,0.04358686,2997.6,2997.0,0.19228]
[1766202031798,0.84328686,2997.6,2997.1,1.9228]
[1766202032124,0.002,2997.5,2997.1,1.9228]
[1766202032326,0.002,2997.5,2996.9,1.9238]
[1766202032907,0.002,2997.5,2997.0,1.4844]
[1766202033107,0.002,2997.5,2997.0,1.9228]
[1766202034635,0.002,2997.5,2997.1,1.8922]
[1766202038430,0.8283,2997.5,2997.0,1.44517132]
[1766202038734,0.86988686,2997.4,2997.0,1.44517132]
[1766202038935,0.86988686,2997.4,2997.0,0.439]
[1766202040632,0.8263,2997.4,2997.0,0.439]
[1766202041236,0.002,2997.5,2997.0,1.8614]
[1766202041625,0.3454,2997.5,2997.0,1.8614]
[1766202041825,0.3454,2997.5,2997.0,2.3312]
[1766202043038,0.002,2997.5,2997.0,0.439]
[1766202043336,0.002,2997.5,2997.1,1.8922]
[1766202044036,0.002,2997.5,2997.2,0.4698]
[1766202044251,0.002,2997.5,2997.2,1.8922]
[1766202049721,0.002,2997.5,2997.3,1.8922]
[1766202051265,0.002,2997.5,2997.2,0.94674277]
[1766202051558,0.002,2997.5,2997.1,1.8922]
[1766202053356,0.002,2997.5,2997.0,0.9513]
[1766202053545,0.8721,2997.5,2997.0,0.001]
[1766202053749,0.8721,2997.5,2997.1,0.439]
[1766202054074,0.002,2997.5,2997.0,0.001]
[1766202054276,0.8709,2997.3,2997.0,0.001]
[1766202054439,0.3536,2997.2,2996.7,0.439]
[1766202054768,0.8718,2997.1,2996.6,0.4698]
[1766202054930,0.04358686,2997.4,2996.6,0.4698]
[1766202055264,0.3543,2997.0,2996.6,0.4698]
[1766202055430,0.3543,2997.0,2996.6,0.70292]
[1766202055626,0.8744,2997.0,2996.6,0.70292]
[1766202055830,0.8744,2997.0,2996.4,1.8922]
[1766202057167,0.3557,2996.7,2996.4,0.001]
[1766202057670,3.33668343,2997.0,2996.1,1.8932]
[1766202057875,0.3557,2996.8,2996.1,1.8932]
[1766202058170,0.8793,2996.6,2996.1,2.9402264]
[1766202060074,3.33668343,2997.0,2996.1,2.9402264]
[1766202060075,0.8844,2996.8,2996.1,2.9402264]
[1766202060247,0.3578,2996.7,2996.1,1.8932]
[1766202060446,0.8844,2996.7,2996.1,1.8932]
[1766202061677,0.8886,2996.8,2996.2,1.8922]
[1766202066473,0.8886,2996.8,2996.2,2.067]
[1766202069648,0.9095,2996.8,2996.2,2.0328]
[1766202069848,0.9095,2996.8,2996.3,2.9501407]
[1766202070554,0.3641,2996.8,2996.3,2.9501407]
[1766202071984,0.3641,2996.8,2996.3,2.9511407]
[1766202074484,0.9173,2996.8,2996.3,2.9511407]
[1766202074795,0.9173,2996.8,2996.3,2.0338]
[1766202075156,0.3676,2996.7,2996.3,0.001]
[1766202075461,0.9213,2996.5,2996.1,0.001]
[1766202076383,0.5547,2996.5,2996.1,0.001]
[1766202076584,0.3672,2996.4,2996.1,0.001]
[1766202077286,0.002,2998.1,2996.2,7.13960703]
[1766202077466,4.26341396,2997.5,2996.8,2.0328]
[1766202077667,0.5576,2997.4,2996.6,2.0328]
[1766202077869,3.33811396,2997.5,2996.6,2.0328]
[1766202078063,0.5576,2997.2,2996.6,2.0328]
[1766202078259,0.9259,2997.1,2996.6,2.0328]
[1766202080559,0.5576,2997.1,2996.4,2.0737]
[1766202080787,0.3699,2997.0,2996.4,3.21061035]
[1766202080982,0.9332,2997.0,2996.4,3.21061035]
[1766202081960,0.3709,2996.9,2996.4,3.21061035]
[1766202082161,0.002,2997.1,2996.3,0.439]
[1766202082361,0.3709,2996.9,2996.3,0.439]
[1766202082563,0.3709,2996.8,2996.3,0.439]
[1766202083900,0.3709,2996.8,2996.3,2.5127]
[1766202085195,0.9396,2996.8,2996.3,2.0737]
[1766202089873,0.9396,2996.8,2996.3,10.56900472]
[1766202090070,0.002,2996.8,2996.3,8.49530472]
[1766202090274,0.002,2996.8,2996.4,2.0737]
[1766202090476,0.002,2996.8,2996.4,1.6063]
[1766202090674,0.002,2996.8,2996.5,2.0737]
[1766202092603,0.002,2996.8,2996.3,10.56900472]
[1766202092805,0.002,2996.8,2996.1,2.6407]
[1766202092806,0.04558686,2996.8,2996.1,2.6407]
[1766202093103,0.955,2996.7,2996.1,3.0797]
[1766202093273,0.955,2996.7,2996.1,3.72145767]
[1766202093678,0.9562,2996.6,2996.1,1.20875767]
[1766202095610,0.9575,2996.6,2996.1,1.20875767]
[1766202095909,0.9575,2996.6,2996.1,3.20255767]
[1766202096702,1.00818686,2996.8,2996.2,1.9938]
[1766202098001,0.9647,2996.7,2996.2,1.9938]
[1766202098305,0.9647,2996.7,2996.1,2.5608]
[1766202098475,0.9647,2996.7,2996.1,2.86088]
[1766202098973,0.9647,2996.7,2996.2,1.5285]
[1766202099170,0.9647,2996.7,2996.2,1.9938]
[1766202100510,0.04558686,2996.8,2996.1,0.86708]
[1766202100706,0.002,2996.8,2996.3,7.13946673]